bitfinex/quotes_BTCUSD_20230906
["timestamp","ask_amount","ask_price","bid_price","bid_amount"]
[1693969582179,0.02540196,25860.0,25859.0,4.98005603]
[1693969583681,0.00557321,25860.0,25859.0,5.65176207]
[1693969583881,0.00557321,25860.0,25859.0,5.39489314]
[1693969584089,0.00557321,25860.0,25859.0,5.6650175]
[1693969586449,0.00557321,25860.0,25859.0,5.6850175]
[1693969588011,0.00557321,25860.0,25859.0,5.41489314]
[1693969588213,0.004,25860.0,25859.0,5.41489314]
[1693969588419,0.00157321,25862.0,25860.0,0.02]
[1693969588638,0.02140196,25862.0,25861.0,5.28681509]
[1693969588839,0.02140196,25862.0,25861.0,6.27513134]
[1693969589041,0.02140196,25862.0,25861.0,6.31082641]
[1693969589242,0.00157321,25862.0,25861.0,6.07968937]
[1693969589444,0.02140196,25862.0,25861.0,6.07968937]
[1693969590378,0.02140196,25862.0,25861.0,6.53789892]
[1693969590553,0.02240196,25862.0,25861.0,6.53789892]
[1693969590756,0.02140196,25862.0,25861.0,6.53789892]
[1693969591158,0.02140196,25862.0,25861.0,6.54589892]
[1693969592121,0.02140196,25862.0,25861.0,6.68452595]
[1693969596519,0.02140196,25862.0,25861.0,6.49961632]
[1693969596721,0.02140196,25862.0,25861.0,6.68452595]
[1693969597259,0.02140196,25862.0,25861.0,6.49961632]
[1693969598138,0.02140196,25862.0,25861.0,6.27199418]
[1693969599261,0.02140196,25862.0,25861.0,5.76858222]
[1693969600470,0.02140196,25862.0,25861.0,5.90720925]
[1693969600748,0.02140196,25862.0,25861.0,5.91885481]
[1693969602148,0.02140196,25862.0,25861.0,5.76858222]
[1693969602685,0.02140196,25862.0,25861.0,5.73799481]
[1693969602966,0.00157321,25862.0,25861.0,5.73799481]
[1693969603174,0.02140196,25862.0,25861.0,5.73799481]
[1693969603376,0.40804723,25862.0,25861.0,4.96463581]
[1693969604661,0.40804723,25862.0,25861.0,5.73800081]
[1693969615586,0.40804723,25862.0,25861.0,3.33713107]
[1693969637442,0.40804723,25862.0,25861.0,3.45763107]
[1693969659293,0.40804723,25862.0,25861.0,3.55020714]
[1693969665995,0.40804723,25862.0,25861.0,2.65634814]
[1693969666778,0.40804723,25862.0,25861.0,2.56377207]
[1693969672535,0.40804723,25862.0,25861.0,1.79041307]
[1693969673374,0.40804723,25862.0,25861.0,2.56377807]
[1693969676270,0.40804723,25862.0,25861.0,1.79041307]
[1693969678622,0.40804723,25862.0,25861.0,1.01705407]
[1693969680395,0.68811408,25862.0,25861.0,1.01705407]
[1693969681569,0.68811408,25862.0,25861.0,1.00705407]
[1693969682015,0.68811408,25862.0,25861.0,1.00005407]
[1693969682561,0.40804723,25862.0,25861.0,1.77341907]
[1693969682975,0.40804723,25862.0,25861.0,1.00005407]
[1693969683631,0.40804723,25862.0,25861.0,1.01354175]
[1693969685809,0.40804723,25862.0,25861.0,0.24018275]
[1693969686751,0.40804723,25862.0,25861.0,1.01354775]
[1693969687355,0.54700878,25862.0,25861.0,1.01354775]
[1693969689522,0.54700878,25862.0,25861.0,0.24018275]
[1693969691093,0.40804723,25862.0,25861.0,1.01354775]
[1693969693997,0.40804723,25862.0,25861.0,1.78691275]
[1693969696470,0.40804723,25862.0,25861.0,0.24018275]
[1693969697295,0.40804723,25862.0,25861.0,1.01354775]
[1693969699030,0.40804723,25862.0,25861.0,0.24018275]
[1693969699428,0.71364125,25862.0,25861.0,0.24018275]
[1693969701074,1.48697625,25862.0,25861.0,0.24018275]
[1693969701289,1.52697625,25862.0,25861.0,0.24018275]
[1693969701497,0.84096125,25862.0,25861.0,0.24018275]
[1693969701705,0.77364125,25862.0,25861.0,0.24018275]
[1693969704329,0.83964125,25862.0,25861.0,0.24018275]
[1693969704542,0.84018125,25862.0,25861.0,0.24018275]
[1693969704751,0.84012125,25862.0,25861.0,0.24018275]
[1693969704921,0.77364125,25862.0,25861.0,0.24018275]
[1693969705625,1.61447625,25862.0,25861.0,0.24018275]
[1693969705764,0.77364125,25862.0,25861.0,0.24018275]
[1693969707784,0.77364125,25862.0,25861.0,1.01354775]
[1693969708352,0.46804723,25862.0,25861.0,1.01354775]
[1693969709600,0.46804723,25862.0,25861.0,0.24018275]
[1693969710149,0.46804723,25862.0,25861.0,1.01354775]
[1693969711385,0.46804723,25862.0,25861.0,1.78691275]
[1693969711596,0.46804723,25862.0,25861.0,2.56027775]
[1693969715375,0.46804723,25862.0,25861.0,1.78691275]
[1693969715794,0.46804723,25862.0,25861.0,1.01354775]
[1693969716008,0.53840316,25862.0,25861.0,0.24018275]
[1693969716241,0.53828316,25862.0,25861.0,0.24018275]
[1693969716462,0.53732316,25862.0,25861.0,0.24018275]
[1693969716672,0.54122316,25862.0,25861.0,0.24018275]
[1693969716882,0.53924316,25862.0,25861.0,0.24018275]
[1693969717104,0.53906316,25862.0,25861.0,0.24018275]
[1693969717342,0.53390316,25862.0,25861.0,0.24018275]
[1693969717552,0.54452316,25862.0,25861.0,0.24018275]
[1693969717743,0.54050316,25862.0,25861.0,0.24018275]
[1693969717976,0.53738316,25862.0,25861.0,0.24018275]
[1693969718148,0.53666316,25862.0,25861.0,0.24018275]
[1693969718366,0.53654316,25862.0,25861.0,0.24018275]
[1693969718552,0.54062316,25862.0,25861.0,0.24018275]
[1693969718692,0.54056316,25862.0,25861.0,0.24018275]
[1693969718912,0.54038316,25862.0,25861.0,0.24018275]
[1693969719112,0.54026316,25862.0,25861.0,0.24018275]
[1693969719328,0.54014316,25862.0,25861.0,0.24018275]
[1693969719529,0.54056316,25862.0,25861.0,0.24018275]
[1693969719733,0.53972316,25862.0,25861.0,0.24018275]
[1693969719958,0.53954316,25862.0,25861.0,0.24018275]
[1693969720159,0.53942316,25862.0,25861.0,0.24018275]
[1693969720357,0.87420742,25862.0,25861.0,0.24018275]
[1693969720575,0.87564742,25862.0,25861.0,0.24018275]
[1693969720779,0.87510742,25862.0,25861.0,0.24018275]
[1693969720976,0.87480742,25862.0,25861.0,0.24018275]
[1693969721178,0.87444742,25862.0,25861.0,0.24018275]
[1693969721385,0.87438742,25862.0,25861.0,0.24018275]
[1693969721622,0.87414742,25862.0,25861.0,0.24018275]
[1693969721736,0.87402742,25862.0,25861.0,0.24018275]
[1693969721933,0.87390742,25862.0,25861.0,0.24018275]
[1693969722136,0.87378742,25862.0,25861.0,0.24018275]
[1693969722339,0.87366742,25862.0,25861.0,0.24018275]
[1693969722547,0.87348742,25862.0,25861.0,0.24018275]
[1693969722746,0.87330742,25862.0,25861.0,0.24018275]
[1693969723018,0.87318742,25862.0,25861.0,0.24018275]
[1693969723241,0.87306742,25862.0,25861.0,0.24018275]
[1693969723480,0.87300742,25862.0,25861.0,0.24018275]
[1693969723700,3.37186742,25862.0,25861.0,0.24018275]
[1693969723906,3.37162742,25862.0,25861.0,0.24018275]
[1693969724083,3.37234742,25862.0,25861.0,0.24018275]
[1693969724307,3.37222742,25862.0,25861.0,0.24018275]
[1693969724638,3.37216742,25862.0,25861.0,0.24018275]
[1693969725131,3.37180742,25862.0,25861.0,0.24018275]
[1693969725587,3.37186742,25862.0,25861.0,0.24018275]
[1693969725791,4.15204242,25862.0,25861.0,0.24018275]
[1693969725970,4.93017742,25862.0,25861.0,0.24018275]
[1693969726179,4.92747742,25862.0,25861.0,0.24018275]
[1693969726311,4.92771742,25862.0,25861.0,0.24018275]
[1693969726519,4.92759742,25862.0,25861.0,0.24018275]
[1693969726720,4.92729742,25862.0,25861.0,0.24018275]
[1693969726924,4.92651742,25862.0,25861.0,0.24018275]
[1693969727123,4.92639742,25862.0,25861.0,0.24018275]
[1693969727328,4.58975316,25862.0,25861.0,0.24018275]
[1693969727534,4.58771316,25862.0,25861.0,0.24018275]
[1693969728077,4.62885316,25862.0,25861.0,0.24018275]
[1693969728225,4.76117316,25862.0,25861.0,0.24018275]
[1693969728427,4.82207316,25862.0,25861.0,0.24018275]
[1693969728644,5.59426816,25862.0,25861.0,0.24018275]
[1693969728877,5.98151343,25862.0,25861.0,0.24018275]
[1693969729077,5.98139343,25862.0,25861.0,0.24018275]
[1693969729484,5.98133343,25862.0,25861.0,0.23918275]
[1693969729736,5.98229343,25862.0,25861.0,0.23918275]
[1693969729981,5.98885343,25862.0,25861.0,0.23918275]
[1693969730187,5.98097343,25862.0,25861.0,0.23918275]
[1693969730385,5.97953343,25862.0,25861.0,0.23918275]
[1693969730565,5.98983343,25862.0,25861.0,0.24118275]
[1693969730763,5.98995343,25862.0,25861.0,0.24318275]
[1693969730938,5.98977343,25862.0,25861.0,0.24318275]
[1693969731161,5.21649843,25862.0,25861.0,0.24318275]
[1693969731369,5.21013843,25862.0,25861.0,0.24318275]
[1693969731564,5.20827843,25862.0,25861.0,0.24318275]
[1693969731771,5.20821843,25862.0,25861.0,0.24318275]
[1693969731942,5.20815843,25862.0,25861.0,0.24318275]
[1693969732142,5.21001843,25862.0,25861.0,0.24318275]
[1693969732346,5.22935843,25862.0,25861.0,0.24318275]
[1693969732551,5.24207843,25862.0,25861.0,0.24318275]
[1693969732759,5.24381843,25862.0,25861.0,0.24318275]
[1693969732958,5.24387843,25862.0,25861.0,0.24318275]
[1693969733167,5.24069843,25862.0,25861.0,0.24318275]
[1693969733368,5.24159843,25862.0,25861.0,0.24318275]
[1693969733574,5.24351843,25862.0,25861.0,0.24318275]
[1693969733802,5.24315843,25862.0,25861.0,0.24318275]
[1693969734001,5.24309843,25862.0,25861.0,0.24318275]
[1693969734198,5.24327843,25862.0,25861.0,0.24318275]
[1693969734417,5.24357843,25862.0,25861.0,0.24318275]
[1693969734770,6.01445343,25862.0,25861.0,0.24318275]
[1693969734970,6.02447343,25862.0,25861.0,0.24318275]
[1693969735154,6.01841343,25862.0,25861.0,0.24318275]
[1693969735352,6.01595343,25862.0,25861.0,0.24318275]
[1693969735556,6.01583343,25862.0,25861.0,0.24318275]
[1693969735918,6.01577343,25862.0,25861.0,0.24318275]
[1693969736435,5.24243843,25862.0,25861.0,0.24318275]
[1693969737041,5.23919843,25862.0,25861.0,0.24318275]
[1693969737241,5.23961843,25862.0,25861.0,0.24318275]
[1693969737449,5.23877843,25862.0,25861.0,0.24318275]
[1693969737624,5.23853843,25862.0,25861.0,0.24318275]
[1693969737826,5.23661843,25862.0,25861.0,0.24318275]
[1693969738028,5.23667843,25862.0,25861.0,0.24318275]
[1693969738354,5.23679843,25862.0,25861.0,0.24318275]
[1693969738550,5.23583843,25862.0,25861.0,0.24318275]
[1693969738702,4.84745316,25862.0,25861.0,0.24318275]
[1693969738906,4.84427316,25862.0,25861.0,0.24318275]
[1693969739111,4.84355316,25862.0,25861.0,0.24318275]
[1693969739318,4.84337316,25862.0,25861.0,0.24318275]
[1693969739618,4.84325316,25862.0,25861.0,0.24318275]
[1693969739838,4.84367316,25862.0,25861.0,0.24318275]
[1693969740043,4.96559508,25862.0,25861.0,0.24318275]
[1693969740243,4.96913508,25862.0,25861.0,0.24318275]
[1693969740443,4.96703508,25862.0,25861.0,0.24318275]
[1693969740646,4.96751508,25862.0,25861.0,0.24318275]
[1693969740912,4.97219508,25862.0,25861.0,0.24318275]
[1693969741121,4.97153508,25862.0,25861.0,0.24318275]
[1693969741321,4.97231508,25862.0,25861.0,0.24318275]
[1693969741494,4.97255508,25862.0,25861.0,0.24318275]
[1693969741704,4.97339508,25862.0,25861.0,0.24318275]
[1693969741904,4.97345508,25862.0,25861.0,0.24318275]
[1693969742120,4.97375508,25862.0,25861.0,0.24318275]
[1693969742526,4.97315508,25862.0,25861.0,0.24318275]
[1693969742863,4.85099316,25862.0,25861.0,0.24318275]
[1693969743070,4.84913316,25862.0,25861.0,0.24318275]
[1693969743283,4.85255316,25862.0,25861.0,0.24318275]
[1693969743494,4.85273316,25862.0,25861.0,0.24318275]
[1693969743748,4.85291316,25862.0,25861.0,0.24318275]
[1693969743967,4.85609316,25862.0,25861.0,0.24318275]
[1693969744143,4.93751685,25862.0,25861.0,0.24318275]
[1693969744347,4.94015685,25862.0,25861.0,0.24318275]
[1693969744556,4.93937685,25862.0,25861.0,0.24318275]
[1693969744755,5.71373185,25862.0,25861.0,0.24318275]
[1693969744995,5.59335185,25862.0,25861.0,0.24318275]
[1693969745197,4.81893685,25862.0,25861.0,0.24318275]
[1693969745401,3.95199816,25862.0,25861.0,0.24318275]
[1693969745600,3.10096316,25862.0,25861.0,0.24318275]
[1693969748083,3.08096316,25862.0,25861.0,0.24318275]
[1693969748643,3.14624316,25862.0,25861.0,0.24318275]
[1693969748859,3.14654316,25862.0,25861.0,0.24318275]
[1693969749060,3.14690316,25862.0,25861.0,0.24318275]
[1693969749267,3.14702316,25862.0,25861.0,0.24318275]
[1693969749679,3.14768316,25862.0,25861.0,0.24318275]
[1693969749874,3.14780316,25862.0,25861.0,0.24318275]
[1693969750075,3.14840316,25862.0,25861.0,0.24318275]
[1693969750281,3.14804316,25862.0,25861.0,0.24318275]
[1693969750601,3.14996316,25862.0,25861.0,0.24318275]
[1693969751053,3.14900316,25862.0,25861.0,0.24318275]
[1693969751269,3.14744316,25862.0,25861.0,0.24318275]
[1693969751405,3.14774316,25862.0,25861.0,0.24318275]
[1693969751579,3.14768316,25862.0,25861.0,0.24318275]
[1693969751777,3.14804316,25862.0,25861.0,0.24318275]
[1693969751982,3.14780316,25862.0,25861.0,0.24318275]
[1693969752190,3.14876316,25862.0,25861.0,0.24318275]
[1693969752386,3.15452316,25862.0,25861.0,0.24318275]
[1693969752659,3.14936316,25862.0,25861.0,0.24318275]
[1693969752858,3.14942316,25862.0,25861.0,0.24318275]
[1693969753227,3.14966316,25862.0,25861.0,0.24318275]
[1693969753413,3.14978316,25862.0,25861.0,0.24318275]
[1693969753859,3.14984316,25862.0,25861.0,0.24318275]
[1693969754006,3.14990316,25862.0,25861.0,0.24318275]
[1693969754208,3.15008316,25862.0,25861.0,0.24318275]
[1693969754428,3.15038316,25862.0,25861.0,0.24318275]
[1693969754633,3.15026316,25862.0,25861.0,0.24318275]
[1693969754966,3.14966316,25862.0,25861.0,0.24318275]
[1693969755220,3.14978316,25862.0,25861.0,0.24318275]
[1693969755420,3.14816316,25862.0,25861.0,0.24318275]
[1693969755651,3.14822316,25862.0,25861.0,0.24318275]
[1693969755830,3.14810316,25862.0,25861.0,0.24318275]
[1693969756031,3.14828316,25862.0,25861.0,0.24318275]
[1693969756234,3.14774316,25862.0,25861.0,0.24318275]
[1693969756436,3.14708316,25862.0,25861.0,0.24318275]
[1693969756643,3.14708316,25862.0,25861.0,1.78991275]
[1693969756644,3.08096316,25862.0,25861.0,1.78991275]
[1693969758724,3.02096316,25862.0,25861.0,1.78991275]
[1693969758963,3.08096316,25862.0,25861.0,1.78991275]
[1693969759148,3.02096316,25862.0,25861.0,1.78991275]
[1693969760614,3.02096316,25862.0,25861.0,1.01654775]
[1693969763808,3.02096316,25862.0,25861.0,0.24318275]
[1693969764007,3.02096316,25862.0,25861.0,1.01654775]
[1693969766488,3.08792316,25862.0,25861.0,0.24318275]
[1693969766697,3.08966316,25862.0,25861.0,0.24318275]
[1693969766910,3.09110316,25862.0,25861.0,0.24318275]
[1693969767131,3.09062316,25862.0,25861.0,0.24318275]
[1693969767342,3.09032316,25862.0,25861.0,0.24318275]
[1693969767548,3.09020316,25862.0,25861.0,0.24318275]
[1693969767763,3.09056316,25862.0,25861.0,0.24318275]
[1693969767991,3.09044316,25862.0,25861.0,0.24318275]
[1693969768202,3.09188316,25862.0,25861.0,0.24318275]
[1693969768417,3.09092316,25862.0,25861.0,0.24318275]
[1693969768623,3.09212316,25862.0,25861.0,0.24318275]
[1693969768841,3.09206316,25862.0,25861.0,0.24318275]
[1693969769095,3.09212316,25862.0,25861.0,0.24318275]
[1693969769304,3.09218316,25862.0,25861.0,0.2456422]
[1693969769520,3.09212316,25862.0,25861.0,0.2456422]
[1693969769731,3.09158316,25862.0,25861.0,0.2456422]
[1693969769947,3.09212316,25862.0,25861.0,0.2456422]
[1693969770150,3.09128316,25862.0,25861.0,0.2456422]
[1693969770379,3.09134316,25862.0,25861.0,0.2456422]
[1693969770591,3.09140316,25862.0,25861.0,0.2456422]
[1693969770796,3.09128316,25862.0,25861.0,0.2456422]
[1693969771002,3.09182316,25862.0,25861.0,0.2456422]
[1693969771205,3.09212316,25862.0,25861.0,0.2456422]
[1693969771407,3.09170316,25862.0,25861.0,0.2456422]
[1693969771616,3.09188316,25862.0,25861.0,0.2456422]
[1693969771829,3.09254316,25862.0,25861.0,0.2456422]
[1693969772042,3.09290316,25862.0,25861.0,0.2456422]
[1693969772254,3.09236316,25862.0,25861.0,0.2456422]
[1693969772460,3.09488316,25862.0,25861.0,0.2456422]
[1693969772676,3.09482316,25862.0,25861.0,0.2456422]
[1693969772881,3.09476316,25862.0,25861.0,0.2456422]
[1693969773085,3.09488316,25862.0,25861.0,0.2456422]
[1693969773293,3.09500316,25862.0,25861.0,0.2456422]
[1693969773496,3.09494316,25862.0,25861.0,0.2456422]
[1693969773697,3.09506316,25862.0,25861.0,0.2456422]
[1693969774105,3.09614316,25862.0,25861.0,0.2456422]
[1693969774376,3.09554316,25862.0,25861.0,0.2456422]
[1693969774497,3.09584316,25862.0,25861.0,0.2456422]
[1693969774699,3.09602316,25862.0,25861.0,0.2456422]
[1693969774922,3.09542316,25862.0,25861.0,0.2456422]
[1693969775124,3.09530316,25862.0,25861.0,0.2456422]
[1693969775322,3.09614316,25862.0,25861.0,0.2456422]
[1693969775528,3.09620316,25862.0,25861.0,0.2456422]
[1693969775733,3.09614316,25862.0,25861.0,0.2456422]
[1693969775950,3.09704316,25862.0,25861.0,0.2456422]
[1693969776300,3.09662316,25862.0,25861.0,1.7923722]
[1693969776594,3.09704316,25862.0,25861.0,1.7923722]
[1693969776724,3.10058316,25862.0,25861.0,1.7923722]
[1693969776923,3.10262316,25862.0,25861.0,1.7923722]
[1693969777239,3.10280316,25862.0,25861.0,1.7923722]
[1693969777479,3.10268316,25862.0,25861.0,1.7923722]
[1693969777676,3.10148316,25862.0,25861.0,1.7923722]
[1693969777895,3.10214316,25862.0,25861.0,1.0190072]
[1693969778080,3.10154316,25862.0,25861.0,0.2456422]
[1693969778253,3.10166316,25862.0,25861.0,0.2456422]
[1693969778461,3.10112316,25862.0,25861.0,0.2456422]
[1693969778663,3.10106316,25862.0,25861.0,0.2456422]
[1693969778837,3.10094316,25862.0,25861.0,0.2456422]
[1693969779042,3.10082316,25862.0,25861.0,0.2456422]
[1693969779256,3.10064316,25862.0,25861.0,0.2456422]
[1693969779464,3.10142316,25862.0,25861.0,0.2456422]
[1693969779664,3.10100316,25862.0,25861.0,0.2456422]
[1693969779892,3.08094316,25862.0,25861.0,0.2456422]
[1693969780091,3.08088316,25862.0,25861.0,0.2456422]
[1693969780297,3.08052316,25862.0,25861.0,0.2456422]
[1693969780517,3.08082316,25862.0,25861.0,0.2456422]
[1693969780721,3.08076316,25862.0,25861.0,0.2456422]
[1693969780921,3.08070316,25862.0,25861.0,0.2456422]
[1693969781124,3.07998316,25862.0,25861.0,0.2456422]
[1693969781372,3.07992316,25862.0,25861.0,0.2456422]
[1693969781569,3.07986316,25862.0,25861.0,0.2456422]
[1693969781897,3.08028316,25862.0,25861.0,0.2456422]
[1693969782218,3.08016316,25862.0,25861.0,0.2456422]
[1693969782424,3.07980316,25862.0,25861.0,0.2456422]
[1693969782579,3.07950316,25862.0,25861.0,0.2456422]
[1693969782801,3.07944316,25862.0,25861.0,1.0190072]
[1693969783026,3.07992316,25862.0,25861.0,0.2456422]
[1693969783214,3.07968316,25862.0,25861.0,0.2456422]
[1693969783416,3.07974316,25862.0,25861.0,0.2456422]
[1693969783680,3.07962316,25862.0,25861.0,0.2456422]
[1693969783814,3.07956316,25862.0,25861.0,0.2456422]
[1693969784200,3.07926316,25862.0,25861.0,0.2456422]
[1693969784435,3.08010316,25862.0,25861.0,0.2456422]
[1693969784626,3.07938316,25862.0,25861.0,0.2456422]
[1693969785253,3.07914316,25862.0,25861.0,0.2456422]
[1693969785463,3.07722316,25862.0,25861.0,0.2456422]
[1693969785665,3.07662316,25862.0,25861.0,0.2456422]
[1693969785884,3.07710316,25862.0,25861.0,0.2456422]
[1693969786005,3.07704316,25862.0,25861.0,0.2456422]
[1693969786228,3.07488316,25862.0,25861.0,0.2456422]
[1693969786426,3.07302316,25862.0,25861.0,1.0190072]
[1693969786686,3.00096316,25862.0,25861.0,1.7923722]
[1693969791036,3.07044316,25862.0,25861.0,1.7923722]
[1693969791249,3.07110316,25862.0,25861.0,1.7923722]
[1693969791456,3.07104316,25862.0,25861.0,1.7923722]
[1693969791662,3.07338316,25862.0,25861.0,1.7923722]
[1693969791922,3.07314316,25862.0,25861.0,1.7923722]
[1693969792143,3.07308316,25862.0,25861.0,1.7923722]
[1693969792773,3.07212316,25862.0,25861.0,1.7923722]
[1693969793228,3.07218316,25862.0,25861.0,1.7923722]
[1693969793861,3.07302316,25862.0,25861.0,1.7923722]
[1693969794080,3.07428316,25862.0,25861.0,1.0190072]
[1693969794284,3.11885916,25862.0,25861.0,1.0190072]
[1693969794510,3.13343916,25862.0,25861.0,0.2456422]
[1693969794714,3.13433916,25862.0,25861.0,0.2456422]
[1693969794945,3.13505916,25862.0,25861.0,0.2456422]
[1693969795157,3.13493916,25862.0,25861.0,0.2456422]
[1693969795362,3.13481916,25862.0,25861.0,0.2456422]
[1693969795548,3.13457916,25862.0,25861.0,0.2456422]
[1693969795757,3.13427916,25862.0,25861.0,0.2456422]
[1693969795968,3.13415916,25862.0,25861.0,0.2456422]
[1693969796173,3.13403916,25862.0,25861.0,0.2456422]
[1693969796387,3.13391916,25862.0,25861.0,0.2456422]
[1693969796584,3.13373916,25862.0,25861.0,0.2456422]
[1693969796781,3.13361916,25862.0,25861.0,0.2456422]
[1693969796987,3.13349916,25862.0,25861.0,0.2456422]
[1693969797211,3.13331916,25862.0,25861.0,0.2456422]
[1693969797414,3.13319916,25862.0,25861.0,0.2456422]
[1693969797623,3.13301916,25862.0,25861.0,0.2456422]
[1693969797830,3.13289916,25862.0,25861.0,0.2456422]
[1693969798050,0.08131789,25858.0,25857.0,0.09257607]
[1693969798268,0.08131789,25857.0,25855.0,1.00496118]
[1693969798483,0.45544159,25856.0,25855.0,1.63963307]
[1693969798705,0.54227948,25856.0,25855.0,1.63964807]
[1693969798920,0.54191948,25856.0,25855.0,1.63964807]
[1693969799127,0.47675948,25856.0,25855.0,1.547072]
[1693969799333,0.54233948,25856.0,25855.0,0.773536]
[1693969799607,0.47675948,25856.0,25855.0,0.773536]
[1693969800041,0.48075948,25856.0,25855.0,0.773536]
[1693969800888,0.48575948,25856.0,25855.0,0.773536]
[1693969801511,0.48575948,25856.0,25855.0,1.54708]
[1693969801720,0.43696316,25856.0,25855.0,1.54708]
[1693969802965,0.59175816,25856.0,25855.0,1.54708]
[1693969803798,0.59175816,25856.0,25855.0,0.773536]
[1693969805601,0.02131789,25855.0,25854.0,1.547119]
[1693969805803,0.42796316,25855.0,25854.0,1.547119]
[1693969806002,0.54000975,25855.0,25854.0,1.547119]
[1693969806974,0.54000975,25855.0,25854.0,1.550119]
[1693969807179,0.54000975,25855.0,25854.0,0.776556]
[1693969807410,0.54000975,25855.0,25854.0,0.003]
[1693969807833,0.54000975,25855.0,25854.0,0.008]
[1693969808042,0.54000975,25855.0,25854.0,0.781574]
[1693969808488,0.66050975,25855.0,25854.0,0.008]
[1693969808706,0.76554975,25855.0,25854.0,0.008]
[1693969808923,1.55109375,25855.0,25854.0,0.008]
[1693969809137,0.77712975,25855.0,25854.0,0.003]
[1693969809344,0.77706975,25855.0,25854.0,0.003]
[1693969809562,0.78748975,25855.0,25854.0,0.003]
[1693969809798,0.79000975,25855.0,25854.0,0.003]
[1693969810025,0.79000975,25855.0,25853.0,0.773583]
[1693969810026,0.02131789,25854.0,25853.0,0.773583]
[1693969810289,0.87700933,25854.0,25853.0,0.773583]
[1693969810515,0.02131789,25853.0,25852.0,1.547235]
[1693969810735,0.42796316,25853.0,25852.0,1.542235]
[1693969811169,0.42796316,25853.0,25852.0,0.768617]
[1693969811410,0.01982875,25851.0,25850.0,1.54736]
[1693969811618,0.42796316,25851.0,25850.0,1.54736]
[1693969811834,0.42796316,25851.0,25850.0,0.773678]
[1693969811835,0.65173228,25851.0,25850.0,0.773678]
[1693969812045,0.06131789,25850.0,25849.0,0.773708]
[1693969812260,0.46796316,25850.0,25849.0,0.773708]
[1693969814097,0.46796316,25850.0,25849.0,0.776708]
[1693969814340,0.46896316,25850.0,25849.0,0.012]
[1693969814547,0.71801749,25850.0,25849.0,0.012]
[1693969814756,1.49171149,25850.0,25849.0,0.012]
[1693969814963,2.26540549,25850.0,25849.0,0.012]
[1693969815577,1.49171149,25850.0,25849.0,0.012]
[1693969815782,0.71801749,25850.0,25849.0,0.012]
[1693969816163,1.49171149,25850.0,25849.0,0.012]
[1693969817013,0.71801749,25850.0,25849.0,0.012]
[1693969818866,0.71801749,25850.0,25849.0,0.10457607]
[1693969819276,0.71801749,25850.0,25849.0,0.15257922]
[1693969823550,0.71801749,25850.0,25849.0,0.29144333]
[1693969824160,0.71801749,25850.0,25849.0,0.15257922]
[1693969824364,0.71801749,25850.0,25849.0,0.29144333]
[1693969824814,0.71801749,25850.0,25849.0,0.74882342]
[1693969825412,0.71801749,25850.0,25849.0,0.29144333]
[1693969825614,0.71801749,25850.0,25849.0,0.748825]
[1693969826469,0.71801749,25850.0,25849.0,0.06000315]
[1693969826673,0.71801749,25850.0,25849.0,0.65598795]
[1693969827972,0.71801749,25850.0,25849.0,1.52211746]
[1693969828341,0.46896316,25850.0,25849.0,3.28246528]
[1693969828547,0.46896316,25850.0,25849.0,3.14386128]
[1693969829935,0.40896316,25850.0,25849.0,3.26392451]
[1693969830140,0.04,25852.0,25850.0,0.05999999]
[1693969830345,0.38664527,25851.0,25850.0,0.84070113]
[1693969830523,0.38664527,25851.0,25850.0,2.32380909]
[1693969830894,0.38664527,25851.0,25850.0,4.05597113]
[1693969831354,0.38664527,25851.0,25850.0,4.05797113]
[1693969832615,0.38664527,25851.0,25850.0,4.3124213]
[1693969832814,0.39164527,25851.0,25850.0,4.3124213]
[1693969834231,0.39164527,25851.0,25850.0,4.343015]
[1693969834888,0.39164527,25851.0,25850.0,4.20443482]
[1693969836615,0.39164527,25851.0,25850.0,1.10966482]
[1693969836821,0.39164527,25851.0,25850.0,1.34067149]
[1693969838178,0.39164527,25851.0,25850.0,1.15589745]
[1693969838631,0.005,25851.0,25850.0,0.92489078]
[1693969839514,0.04,25854.0,25850.0,0.92489078]
[1693969839729,0.38664527,25853.0,25852.0,0.18493756]
[1693969839939,0.38664527,25853.0,25852.0,0.30543756]
[1693969840143,0.38664527,25853.0,25852.0,0.76278448]
[1693969840829,0.40964527,25853.0,25852.0,0.76478448]
[1693969841903,0.40964527,25853.0,25852.0,0.99595643]
[1693969842326,0.42764527,25853.0,25852.0,0.57333769]
[1693969842737,0.42764527,25853.0,25852.0,0.40011315]
[1693969844824,0.42764527,25853.0,25852.0,0.52061315]
[1693969845729,0.42764527,25853.0,25852.0,0.26336004]
[1693969845954,0.42764527,25853.0,25852.0,0.26336795]
[1693969848395,0.42764527,25853.0,25852.0,0.21708599]
[1693969849122,0.42764527,25853.0,25852.0,0.1245]
[1693969849325,0.42764527,25853.0,25852.0,0.15551925]
[1693969849746,0.42764527,25853.0,25852.0,0.24810524]
[1693969849952,0.42764527,25853.0,25852.0,0.15551925]
[1693969850371,0.4764098,25853.0,25852.0,0.15551925]
[1693969861836,0.4764098,25853.0,25852.0,0.03501925]
[1693969862262,0.4964098,25853.0,25852.0,0.03501925]
[1693969867204,1.2900138,25853.0,25852.0,0.03501925]
[1693969867423,2.9321618,25853.0,25852.0,0.03501925]
[1693969867624,2.9834818,25853.0,25852.0,0.03501925]
[1693969867836,2.9815618,25853.0,25852.0,0.03501925]
[1693969868066,2.9769418,25853.0,25852.0,0.03501925]
[1693969868250,2.9867818,25853.0,25852.0,0.03501925]
[1693969868459,2.9795218,25853.0,25852.0,0.03501925]
[1693969868667,2.9777218,25853.0,25852.0,0.03501925]
[1693969868871,2.9774818,25853.0,25852.0,0.03501925]
[1693969869083,0.6563098,25853.0,25852.0,0.03501925]
[1693969869286,0.6542698,25853.0,25852.0,0.03501925]
[1693969869512,0.6540898,25853.0,25852.0,0.03501925]
[1693969869842,0.6552298,25853.0,25852.0,0.03501925]
[1693969870046,1.4311138,25853.0,25852.0,0.03501925]
[1693969870263,1.4293738,25853.0,25852.0,0.03501925]
[1693969870471,1.4272138,25853.0,25852.0,0.03501925]
[1693969870650,2.2057378,25853.0,25852.0,0.03501925]
[1693969870899,2.9922418,25853.0,25852.0,0.03501925]
[1693969871108,3.2629218,25853.0,25852.0,0.03501925]
[1693969871327,3.35163636,25853.0,25852.0,0.03501925]
[1693969871538,3.35367636,25853.0,25852.0,0.03501925]
[1693969871736,3.33363636,25853.0,25852.0,0.03301925]
[1693969871941,3.20253636,25853.0,25852.0,0.03301925]
[1693969872148,3.20235636,25853.0,25852.0,0.03301925]
[1693969872360,3.08167636,25853.0,25852.0,0.03301925]
[1693969872565,3.10549636,25853.0,25852.0,0.03401925]
[1693969872775,3.10531636,25853.0,25852.0,0.03401925]
[1693969872966,3.05867636,25853.0,25852.0,0.03101925]
[1693969873224,3.08255636,25853.0,25852.0,0.03201925]
[1693969873454,4.47543722,25853.0,25852.0,0.03101925]
[1693969873666,4.8523308,25853.0,25852.0,0.03101925]
[1693969873880,4.8570708,25853.0,25852.0,0.001]
[1693969874091,4.8615708,25853.0,25852.0,0.001]
[1693969874303,4.8853908,25853.0,25852.0,0.002]
[1693969874514,5.1928745,25853.0,25852.0,0.001]